bitfinex-derivatives/quotes_ETHF0:USTF0_20250321
["timestamp","ask_amount","ask_price","bid_price","bid_amount"]
[1742520655799,7.24706,1985.6,1985.5,2.021]
[1742520655995,4.01406,1985.6,1985.5,2.021]
[1742520656502,8.63646,1985.6,1985.5,2.021]
[1742520657003,7.24706,1985.6,1985.5,2.8273]
[1742520657706,4.01406,1985.6,1985.5,2.8273]
[1742520657903,7.24706,1985.6,1985.5,2.8273]
[1742520658294,7.24706,1985.6,1985.5,2.021]
[1742520663609,4.03926,1985.6,1985.5,2.021]
[1742520664001,0.80624,1985.7,1985.6,0.80626]
[1742520664202,4.03924,1985.7,1985.6,2.10726]
[1742520664511,50.57701,1985.8,1985.7,0.80622]
[1742520664809,0.80618,1985.9,1985.8,0.80617]
[1742520665105,4.03918,1985.9,1985.8,0.6957]
[1742520665508,4.03918,1985.9,1985.8,1.9967]
[1742520666107,4.03918,1985.9,1985.8,1.9967]
[1742520666804,4.03918,1985.9,1985.8,2.80288]
[1742520668114,4.03918,1985.9,1985.8,1.9967]
[1742520669214,4.03918,1985.9,1985.8,2.80288]
[1742520670906,4.03918,1985.9,1985.8,1.9967]
[1742520672318,4.03918,1985.9,1985.8,2.80288]
[1742520673412,4.03918,1985.9,1985.8,1.9967]
[1742520673615,5.43768,1985.9,1985.8,1.9967]
[1742520675306,5.43768,1985.9,1985.8,2.6742]
[1742520676011,5.43768,1985.9,1985.8,1.301]
[1742520676213,6.09428,1985.9,1985.8,1.301]
[1742520676521,0.80626,1985.6,1985.5,1.3704]
[1742520676718,4.03926,1985.6,1985.5,1.3704]
[1742520678018,4.03926,1985.6,1985.5,2.7395]
[1742520678522,7.24706,1985.6,1985.5,2.7395]
[1742520678717,4.03926,1985.6,1985.5,3.5458]
[1742520679518,3.233,1985.6,1985.5,3.5458]
[1742520679720,3.233,1985.6,1985.5,4.22630017]
[1742520681426,0.80624,1985.7,1985.6,0.80626]
[1742520681625,4.03924,1985.7,1985.6,2.85136017]
[1742520682024,4.03924,1985.7,1985.6,2.85131818]
[1742520682326,3.233,1985.7,1985.6,2.85131818]
[1742520682719,3.233,1985.8,1985.7,0.80622]
[1742520683027,3.233,1986.1,1986.0,0.8061]
[1742520683226,4.04653356,1986.3,1986.2,0.80602]
[1742520683924,3.24054356,1986.3,1986.2,0.80602]
[1742520684127,3.24054356,1986.3,1986.2,1.48592287]
[1742520684425,3.24054356,1986.3,1986.2,0.80602]
[1742520685028,0.00754356,1986.3,1986.2,0.80602]
[1742520686729,3.24054356,1986.3,1986.2,0.80602]
[1742520687319,0.00754356,1986.3,1986.2,0.80602]
[1742520687622,3.232,1986.5,1986.4,0.80594]
[1742520688324,3.232,1986.5,1986.4,1.45164]
[1742520688527,3.2078,1986.6,1986.5,0.8059]
[1742520688826,0.00754356,1986.6,1986.5,2.1923]
[1742520689018,3.23954356,1986.6,1986.5,2.1923]
[1742520689828,3.23954356,1986.6,1986.5,2.87028614]
[1742520690335,3.23954356,1986.6,1986.5,2.1923]
[1742520690929,0.00754356,1986.6,1986.5,42.9923]
[1742520691129,1.41884356,1986.6,1986.5,42.9923]
[1742520691722,0.00754356,1986.6,1986.5,42.9923]
[1742520693125,0.00754356,1986.6,1986.5,45.4923]
[1742520693328,0.00754356,1986.6,1986.5,46.16972533]
[1742520694426,0.00754356,1986.6,1986.5,42.9923]
[1742520695130,0.00754356,1986.6,1986.5,43.6602]
[1742520695331,1.34314356,1986.6,1986.5,43.6602]
[1742520695925,2.14900356,1986.6,1986.5,43.6602]
[1742520696433,5.38100356,1986.6,1986.5,2.1923]
[1742520696934,5.38100356,1986.6,1986.5,42.9923]
[1742520697839,5.38100356,1986.6,1986.5,42.1864]
[1742520698937,0.80594,1986.4,1986.3,1.47058356]
[1742520699139,4.04094,1986.4,1986.3,2.84998356]
[1742520699438,4.04094,1986.4,1986.3,43.64998356]
[1742520700240,3.235,1986.4,1986.3,43.64998356]
[1742520702735,1.311,1986.5,1986.3,43.64998356]
[1742520703041,1.311,1986.5,1986.4,2.13524]
[1742520703841,1.311,1986.5,1986.4,42.93524]
[1742520707149,0.00754356,1986.6,1986.5,0.8059]
[1742520707438,0.80569,1987.1,1987.0,0.80567]
[1742520707745,5.37999,1987.1,1987.0,41.60567]
[1742520708144,4.5753,1987.1,1987.0,41.60567]
[1742520708741,4.5753,1987.1,1987.0,42.94007]
[1742520709240,3.24254356,1987.2,1987.1,0.80566]
[1742520709648,3.24254356,1987.2,1987.1,2.14006]
[1742520709939,1.34754356,1987.2,1987.1,2.14006]
[1742520710145,0.00754356,1987.2,1987.1,2.14006]
[1742520711845,0.00754356,1987.2,1987.1,2.81826664]
[1742520712248,1.3024,1987.5,1987.4,0.80553]
[1742520712550,4.5364,1987.5,1987.4,0.80553]
[1742520712854,5.34189,1987.5,1987.4,0.80553]
[1742520713245,5.34189,1987.5,1987.4,2.10203]
[1742520713643,4.5364,1987.5,1987.4,2.10203]
[1742520713845,0.80553,1987.4,1987.3,0.80556]
[1742520714148,2.10796,1987.4,1987.3,0.80557]
[1742520714349,5.34396,1987.4,1987.3,0.80557]
[1742520715744,2.10796,1987.4,1987.3,0.80557]
[1742520716145,5.34196,1987.4,1987.3,0.80557]
[1742520716348,0.80557,1987.3,1987.2,2.10208]
[1742520716658,2.90807,1987.3,1987.2,2.10208]
[1742520719747,2.1025,1987.3,1987.2,2.10208]
[1742520720151,2.90807,1987.3,1987.2,2.10208]
[1742520720958,2.90807,1987.3,1987.2,1.2965]
[1742520721159,0.80566,1987.1,1987.0,40.8]
[1742520721457,0.80566,1987.1,1987.0,42.1003]
[1742520721757,0.80566,1987.1,1987.0,42.906]
[1742520721946,2.21846,1987.1,1987.0,42.906]
[1742520722959,3.231,1987.2,1987.1,0.80566]
[1742520723260,3.231,1987.2,1987.1,2.77016]
[1742520723961,3.231,1987.2,1987.1,5.97796]
[1742520724257,3.231,1987.2,1987.1,6.65595561]
[1742520724649,4.6448,1987.4,1987.3,0.80557]
[1742520724851,5.45033,1987.4,1987.3,0.80557]
[1742520725258,5.45033,1987.4,1987.3,2.15717]
[1742520725955,0.80552,1987.5,1987.4,0.80553]
[1742520726148,2.16422,1987.5,1987.4,2.83173]
[1742520726354,5.39522,1987.5,1987.4,2.83173]
[1742520727156,4.5897,1987.5,1987.4,2.83173]
[1742520727358,5.39519,1987.5,1987.4,2.83173]
[1742520727558,4.5897,1987.5,1987.4,2.83173]
[1742520727758,5.39519,1987.5,1987.4,2.83173]
[1742520728059,1.3587,1987.5,1987.4,2.83173]
[1742520729150,3.23754356,1987.6,1987.5,0.80549]
[1742520729352,0.00754356,1987.6,1987.5,2.07979]
[1742520730655,0.81299356,1987.6,1987.5,1.2743]
[1742520730861,2.80959356,1987.6,1987.5,2.07979]
[1742520731755,2.80959356,1987.6,1987.5,1.2743]
[1742520731957,2.00414356,1987.6,1987.4,0.00754356]
[1742520732263,5.37279,1987.5,1987.4,0.81307356]
[1742520732457,5.37279,1987.5,1987.4,0.00754356]
[1742520733265,5.37279,1987.5,1987.4,0.81307356]
[1742520733456,5.37279,1987.5,1987.4,0.00754356]
[1742520734359,5.37279,1987.5,1987.4,0.81307356]
[1742520734567,5.37279,1987.5,1987.4,0.00754356]
[1742520735370,8.58059,1987.5,1987.4,0.00754356]
[1742520735865,5.37279,1987.5,1987.4,0.00754356]
[1742520737167,8.58059,1987.5,1987.4,0.00754356]
[1742520737864,0.80566,1987.1,1987.0,40.8]
[1742520738168,4.04066,1987.1,1987.0,40.8]
[1742520738468,4.04066,1987.1,1987.0,41.6057]
[1742520738974,5.43636,1987.1,1987.0,42.28587687]
[1742520739364,5.43636,1987.1,1987.0,42.28579765]
[1742520739667,5.43636,1987.1,1987.0,41.6057]
[1742520740763,4.6307,1987.1,1987.0,42.28569656]
[1742520741066,3.235,1987.1,1987.0,42.28569656]
[1742520742168,0.00754356,1987.6,1987.5,0.80549]
[1742520742367,3.24554356,1987.6,1987.5,0.80549]
[1742520742568,5.40109356,1987.6,1987.5,0.80549]
[1742520743366,0.80553,1987.5,1987.4,0.8055]
[1742520743566,2.15563,1987.5,1987.4,1.48524419]
[1742520743772,2.15563,1987.5,1987.4,0.8055]
[1742520744569,1.3501,1987.5,1987.4,1.48523138]
[1742520744775,1.3501,1987.5,1987.4,1.48520741]
[1742520745774,1.3501,1987.5,1987.4,2.81460741]
[1742520746173,2.15559,1987.5,1987.4,2.81460741]
[1742520746771,1.3501,1987.5,1987.4,2.81460741]
[1742520748677,1.3501,1987.5,1987.4,2.8144573]
[1742520749078,0.00754356,1987.6,1987.5,0.80549]
[1742520749372,3.23954356,1987.6,1987.5,3.5692473]
[1742520750373,0.00754356,1987.6,1987.5,3.5692473]
[1742520750774,0.00754356,1987.6,1987.5,3.56905335]
[1742520754170,50.54308,1988.1,1988.0,0.80529]
[1742520754374,3.232,1988.1,1988.0,0.80529]
[1742520754671,0.8052,1988.3,1988.2,0.80521]
[1742520754872,4.0382,1988.3,1988.2,0.80521]
[1742520755072,0.8052,1988.3,1988.2,0.80521]
[1742520755274,0.8052,1988.3,1988.2,41.60521]
[1742520755473,4.0382,1988.3,1988.2,41.60521]
[1742520755680,4.0382,1988.3,1988.2,42.26031]
[1742520755882,5.4276,1988.3,1988.2,42.26031]
[1742520756977,4.6224,1988.3,1988.2,42.26031]
[1742520757374,5.42757,1988.3,1988.2,42.26031]
[1742520762288,3.233,1988.3,1988.2,42.26031]
[1742520765390,6.44434356,1988.4,1988.3,0.80517]
[1742520765591,6.44434356,1988.4,1988.3,2.11787]
[1742520765891,7.24947356,1988.4,1988.3,2.11787]
[1742520766089,8.64127356,1988.4,1988.3,2.11787]
[1742520767981,8.64127356,1988.4,1988.3,1.3127]
[1742520768694,4.02047356,1988.4,1988.3,2.11787]
[1742520768896,6.44434356,1988.4,1988.3,2.11787]
[1742520769495,7.24947356,1988.4,1988.3,2.11787]
[1742520769700,7.84624356,1988.4,1988.3,2.11787]
[1742520769896,8.65137356,1988.4,1988.3,2.11787]
[1742520770100,4.63844356,1988.4,1988.3,2.11787]
[1742520770496,5.44357356,1988.4,1988.3,2.11787]
[1742520770696,2.21457356,1988.4,1988.3,2.11787]
[1742520770901,5.44357356,1988.4,1988.3,2.11787]
[1742520771594,1.40944356,1988.4,1988.3,2.11787]
[1742520771795,4.63844356,1988.4,1988.3,2.11787]
[1742520772704,5.44357356,1988.4,1988.3,2.11787]
[1742520775004,4.63844356,1988.4,1988.3,2.11787]
[1742520775202,0.00754356,1988.4,1988.3,2.11787]
[1742520775399,3.23654356,1988.4,1988.3,2.11787]
[1742520775704,3.229,1988.6,1988.3,2.11787]
[1742520775904,0.80509,1988.5,1988.4,2.16442]
[1742520776207,2.15139,1988.5,1988.4,2.16442]
[1742520777013,1.3463,1988.5,1988.4,2.16442]
[1742520777806,2.15139,1988.5,1988.4,2.16442]
[1742520777996,1.3463,1988.5,1988.4,2.16442]
[1742520779006,4.04162356,1988.6,1988.5,0.80509]
[1742520779207,5.43512356,1988.6,1988.5,2.82909]
[1742520779401,0.00754356,1988.6,1988.5,2.82909]
[1742520779804,2.01204,1989.2,1988.5,2.82909]
[1742520779805,1.45602,1989.0,1988.9,0.80493]
[1742520780008,6.07852,1989.0,1988.9,0.80493]
[1742520780505,6.07852,1989.0,1988.9,2.13613]
[1742520780907,6.07852,1989.0,1988.9,1.3312]
[1742520781100,6.07852,1989.0,1988.9,2.13613]
[1742520782106,5.2736,1989.0,1988.9,2.13613]
[1742520782903,6.07849,1989.0,1988.9,2.13613]
[1742520783201,5.2736,1989.0,1988.9,2.13613]
[1742520784304,6.07849,1989.0,1988.9,2.13613]
[1742520786899,0.00754356,1989.1,1989.0,0.80489]
[1742520787104,3.23554356,1989.1,1989.0,2.18559]
[1742520787409,4.62314356,1989.1,1989.0,2.18559]
[1742520787809,0.00754356,1989.1,1989.0,2.18559]
[1742520788406,0.6709,1989.4,1989.3,0.80476]
[1742520788607,1.4084,1989.4,1989.3,0.80476]
[1742520789003,1.4084,1989.4,1989.3,41.60476]
[1742520790506,2.21312,1989.4,1989.3,41.60476]
[1742520793615,1.4084,1989.4,1989.3,41.60476]
[1742520794707,4.58636536,1989.5,1989.4,0.80472]
[1742520794902,4.58636536,1989.5,1989.4,2.79692]
[1742520795815,4.58636536,1989.5,1989.4,3.49612]
[1742520796909,0.00496536,1989.5,1989.4,3.49612]
[1742520798405,1.3983,1989.8,1989.7,0.80458]
[1742520798607,4.6253,1989.8,1989.7,0.80458]
[1742520798813,3.227,1989.8,1989.7,0.80458]
[1742520799321,3.2078,1990.1,1989.6,4.6207]
[1742520799524,4.03148,1990.0,1989.8,0.80454]
[1742520799724,5.42978,1990.0,1989.9,3.57542]
[1742520800814,4.6253,1990.0,1989.9,3.57542]
[1742520801322,4.6253,1990.0,1989.9,2.7709]
[1742520801515,4.6253,1990.0,1989.4,3.2078]
[1742520801723,4.5902,1989.9,1989.6,1.414]
[1742520801921,2.18697,1989.8,1989.7,0.8046]
[1742520802221,2.87247,1989.8,1989.7,0.8046]
[1742520802525,2.8725,1989.8,1989.6,0.80462]
[1742520802716,2.187,1989.7,1989.6,0.80462]
[1742520803021,1.3824,1989.7,1989.6,0.80462]
[1742520803417,3.2078,1989.9,1989.8,0.80456]
[1742520803612,5.40594,1989.9,1989.7,0.80457]
[1742520803928,5.42516,1989.8,1989.7,0.8046]
[1742520805020,4.6206,1989.8,1989.5,1.322]
[1742520805319,0.80464,1989.6,1989.5,1.322]
[1742520805822,4.03064,1989.6,1989.5,1.322]
[1742520806018,4.03064,1989.6,1989.4,0.80469]
[1742520806019,4.6196,1989.6,1989.4,0.80469]
[1742520806217,2.11538,1989.5,1989.4,0.80469]
[1742520806620,0.80472,1989.4,1989.3,42.99175]
[1742520806818,2.11542,1989.4,1989.3,42.99175]
[1742520807017,1.3107,1989.4,1989.3,42.99175]
[1742520808718,2.11542,1989.4,1989.3,42.99175]
[1742520809725,1.3107,1989.4,1989.3,42.99175]
[1742520810426,2.11542,1989.4,1989.3,42.99175]
[1742520810627,1.3107,1989.4,1989.3,42.99175]
[1742520811619,0.80471,1989.5,1989.4,0.80471]
[1742520811824,2.16661,1989.5,1989.4,0.80471]
[1742520814324,0.80472,1989.4,1989.3,42.99174]
[1742520814627,0.80472,1989.4,1989.3,43.67013564]
[1742520814628,2.20392,1989.4,1989.3,43.67013564]
[1742520814820,1.3992,1989.4,1989.3,43.67013564]
[1742520815726,1.3992,1989.4,1989.3,44.96913564]
[1742520816325,1.3992,1989.4,1989.3,44.96946292]
[1742520816720,1.3992,1989.4,1989.3,44.96988158]
[1742520817917,0.80472,1989.5,1989.3,44.96988158]
[1742520818125,2.08962,1989.5,1989.4,2.78286158]
[1742520818628,2.08962,1989.5,1989.4,2.78320166]
[1742520820934,2.08962,1989.5,1989.4,1.97848166]
[1742520821525,2.08962,1989.5,1989.4,1.299]
[1742520822322,0.80476,1989.3,1989.2,0.00754356]
[1742520822520,4.03076,1989.3,1989.2,1.29964356]
[1742520822723,7.23856,1989.3,1989.2,0.00754356]
[1742520822919,9.19396,1989.3,1989.2,0.00754356]
[1742520831237,9.19396,1989.3,1989.2,1.38834356]
[1742520834832,3.2078,1989.3,1989.2,2.19315356]
[1742520835028,7.23956,1989.3,1989.2,3.55935356]
[1742520836937,7.23956,1989.3,1989.2,2.75454356]
[1742520837137,7.23956,1989.3,1989.2,1.38834356]
[1742520837340,7.90146,1989.3,1989.2,1.38834356]
[1742520838140,0.80489,1989.0,1988.9,42.95043]
[1742520838341,4.03189,1989.0,1988.9,43.62938774]
[1742520838842,4.03189,1989.0,1988.9,42.82445774]
[1742520839034,4.03189,1989.0,1988.9,42.1455]
[1742520839438,4.03189,1989.0,1988.9,42.1172]
[1742520839639,4.73289,1989.0,1988.9,42.1172]
[1742520839838,6.11179,1989.0,1988.9,42.92213]
[1742520840038,6.11179,1989.0,1988.9,42.1172]
[1742520841237,2.88479,1989.0,1988.9,42.1172]
[1742520848247,0.80493,1988.9,1988.8,0.00754356]
[1742520848449,6.73203,1988.9,1988.8,0.00754356]
[1742520848749,9.95903,1988.9,1988.8,40.80754356]
[1742520849148,9.95903,1988.9,1988.8,0.00754356]
[1742520851244,8.60363,1988.9,1988.8,0.81251356]
[1742520851437,0.80493,1988.9,1988.8,0.81251356]
[1742520851642,3.227,1988.9,1988.8,1.49199563]
[1742520851846,4.03193,1988.9,1988.8,1.49199563]
[1742520852052,4.03193,1988.9,1988.8,45.00479563]
[1742520852350,4.03193,1988.9,1988.8,45.00480981]
[1742520852944,4.03193,1988.9,1988.8,44.19983981]
[1742520853145,4.03193,1988.9,1988.8,43.52034356]
[1742520853744,5.38163,1988.9,1988.8,43.52034356]
[1742520857454,4.03193,1988.9,1988.8,44.32531356]
[1742520857651,3.21534356,1989.1,1988.8,44.19994623]
[1742520857853,7.24723356,1989.1,1989.0,0.80489]
[1742520858156,7.24723356,1989.1,1989.0,1.48443528]
[1742520858157,6.44234356,1989.1,1989.0,1.48443528]
[1742520858348,3.21534356,1989.1,1989.0,1.48443528]
[1742520861156,0.00754356,1989.1,1989.0,1.48443528]
[1742520861454,0.00754356,1989.1,1989.0,2.83583528]
[1742520861650,7.23956,1989.4,1989.3,0.80476]
[1742520862057,0.80478,1989.3,1989.2,0.80478]
[1742520862252,0.80478,1989.3,1989.2,2.14358833]
[1742520864949,0.80478,1989.3,1989.2,2.80648833]
[1742520865154,3.227,1989.4,1989.3,0.80476]
[1742520865356,4.03172,1989.4,1989.3,2.17476]
[1742520865861,3.227,1989.4,1989.3,2.17476]
[1742520866663,4.03172,1989.4,1989.3,2.17476]
[1742520867064,3.227,1989.4,1989.3,2.17476]
[1742520868269,4.03172,1989.4,1989.3,2.17476]
[1742520868659,3.227,1989.4,1989.3,2.17476]
[1742520869172,2.14337,1989.6,1989.3,1.37]
[1742520869366,3.227,1989.5,1989.4,0.80472]
[1742520869558,4.03169,1989.5,1989.2,3.33452]
[1742520869763,4.03169,1989.5,1989.4,0.80469]
[1742520870160,3.227,1989.5,1989.4,0.80469]
[1742520870868,4.03168,1989.5,1989.4,0.80469]
[1742520871072,5.38418,1989.5,1989.3,0.80473]
[1742520871272,1.3525,1989.4,1989.3,0.80473]
[1742520872076,1.3525,1989.4,1989.2,2.12729]
[1742520872077,0.80476,1989.3,1989.2,2.12729]
[1742520872381,4.03176,1989.3,1989.2,0.6629]
[1742520872578,4.71726,1989.3,1989.2,0.6629]
[1742520872974,6.06976,1989.3,1989.2,0.6629]
[1742520873682,6.06976,1989.3,1989.2,1.46771]
[1742520873880,4.0125,1989.5,1989.4,0.80472]
[1742520874091,0.80476,1989.4,1989.3,0.80475]
[1742520874379,2.89636,1989.4,1989.3,0.80475]
[1742520875381,4.01251,1989.5,1989.4,0.80472]
[1742520875984,0.80474,1989.4,1989.3,0.80473]
[1742520876184,0.80474,1989.4,1989.3,1.48316319]
[1742520876383,0.80474,1989.4,1989.3,0.80473]
[1742520876984,0.80476,1989.3,1989.2,1.46769]
[1742520877182,0.80476,1989.3,1989.2,2.14614628]
[1742520878378,2.21145,1989.4,1989.3,0.80476]
[1742520878983,0.80475,1989.4,1989.3,0.80476]
[1742520879177,0.80475,1989.4,1989.3,1.48746]
[1742520879373,0.80475,1989.4,1989.3,2.16621837]
[1742520879580,2.19105,1989.4,1989.3,1.48746]
[1742520879780,4.03671,1989.5,1989.4,0.80472]
[1742520880286,4.6183,1989.5,1989.4,0.80472]
[1742520880483,5.42298,1989.5,1989.4,1.48342575]
[1742520880685,5.42298,1989.5,1989.4,0.80472]
[1742520881479,0.80472,1989.4,1989.3,0.80474]
[1742520881684,2.19102,1989.4,1989.3,0.80474]
[1742520881982,1.3863,1989.4,1989.3,1.48348234]
[1742520882382,4.03671,1989.5,1989.4,0.80472]
[1742520882588,5.41801,1989.5,1989.4,1.48346234]
[1742520883488,2.18601,1989.5,1989.4,1.48346234]
[1742520883781,1.3813,1989.5,1989.4,1.48346234]
[1742520883994,4.71298,1989.6,1989.5,0.80468]
[1742520884191,4.71198,1989.6,1989.5,1.50298]
[1742520884391,3.2078,1989.9,1989.5,1.37725029]
[1742520884586,5.41389,1989.8,1989.7,0.80457]
[1742520884789,6.06319,1989.8,1989.7,0.80457]
[1742520886188,2.83519,1989.8,1989.7,0.80457]
[1742520887386,3.48639,1989.8,1989.7,1.48392601]
[1742520888093,3.48639,1989.8,1989.7,1.48393127]
[1742520888390,0.8046,1989.7,1989.6,1.3535]
[1742520888584,5.394,1989.7,1989.6,0.67932795]
[1742520888789,0.80468,1989.5,1989.4,2.09951]
[1742520888991,0.80468,1989.5,1989.4,1.974158]
[1742520889389,2.15898,1989.5,1989.4,1.974158]
[1742520889686,2.15898,1989.5,1989.4,1.97419764]
[1742520889893,2.15898,1989.5,1989.4,2.77891764]
[1742520890386,1.49378,1989.5,1989.4,2.77891764]
[1742520891693,1.49378,1989.5,1989.4,2.77897053]
[1742520892896,1.49378,1989.5,1989.4,1.97425053]
[1742520893696,1.49378,1989.5,1989.4,2.77897053]
[1742520893896,1.49378,1989.5,1989.4,2.77904048]
[1742520894696,4.71978,1989.5,1989.4,2.77904048]
[1742520895598,4.71978,1989.5,1989.4,2.77910118]
[1742520898893,4.71978,1989.5,1989.4,43.57910118]
[1742520899690,4.71978,1989.5,1989.4,43.57918646]
[1742520902695,4.71978,1989.5,1989.4,43.57924921]
[1742520904594,4.71978,1989.5,1989.4,43.5794062]
[1742520905303,4.71978,1989.5,1989.4,43.57945877]
[1742520905998,4.71978,1989.5,1989.4,42.77473877]
[1742520906202,4.71978,1989.5,1989.4,43.57945877]
[1742520906608,4.71978,1989.5,1989.4,43.57950298]
[1742520906806,4.71978,1989.5,1989.4,42.77478298]
[1742520907505,7.92758,1989.5,1989.4,41.47998298]
[1742520907703,7.92758,1989.5,1989.4,40.8]
[1742520911607,7.92758,1989.5,1989.4,41.60472]
[1742520911803,1.3624,1989.6,1989.5,0.80468]
[1742520912003,4.03063,1989.7,1989.6,0.80464]
[1742520912209,5.33083,1989.7,1989.6,0.80464]
[1742520912504,5.33083,1989.7,1989.6,2.85014259]
[1742520912803,2.10483,1989.7,1989.6,2.85014259]
[1742520912999,2.10483,1989.7,1989.6,2.04550259]
[1742520913409,2.10483,1989.7,1989.6,1.3658]
[1742520914214,2.10483,1989.7,1989.6,2.17044]
[1742520915114,2.10483,1989.7,1989.6,2.85011506]
[1742520915409,1.3002,1989.7,1989.6,2.85011506]
[1742520915610,0.6773,1989.8,1989.7,0.8046]
[1742520915809,7.1204,1990.0,1989.7,2.7521969]
[1742520916006,0.80453,1989.9,1989.8,2.1329169]
[1742520916316,0.80453,1989.9,1989.8,3.43599387]
[1742520916519,9.21151,1990.0,1989.9,0.80452]
[1742520916719,6.00371,1990.0,1989.9,2.10762]
[1742520917719,2.77771,1990.0,1989.9,2.10762]
[1742520917910,6.00371,1990.0,1989.9,2.10762]
[1742520922313,4.03051,1990.0,1989.9,2.10762]
[1742520922616,4.03051,1990.0,1989.9,1.3031]
[1742520923118,5.36861,1990.0,1989.9,1.3031]
[1742520924508,0.80464,1989.6,1989.5,4.66235]
[1742520924721,0.80464,1989.6,1989.5,5.34131651]
[1742520924916,0.80464,1989.6,1989.5,2.13351651]
[1742520925225,0.80464,1989.6,1989.5,1.32886651]
[1742520925620,0.80464,1989.6,1989.5,2.64638578]
[1742520925821,2.08273,1989.7,1989.6,0.80464]
[1742520926016,2.08273,1989.7,1989.6,2.80112578]
[1742520926827,2.08273,1989.7,1989.6,2.12214]
[1742520927015,2.08273,1989.7,1989.6,2.80111794]
[1742520927220,2.08273,1989.7,1989.6,2.12214]
[1742520927520,2.08273,1989.7,1989.6,1.3175]
[1742520927720,2.08273,1989.7,1989.6,1.99649302]
[1742520928221,2.08273,1989.7,1989.6,2.80113302]
[1742520928420,2.08273,1989.7,1989.6,1.99649302]
[1742520929322,2.08273,1989.7,1989.6,1.3175]
[1742520929826,0.80468,1989.5,1989.4,40.8]
[1742520930021,4.03068,1989.5,1989.4,42.1587]
[1742520930422,6.02568,1989.5,1989.4,42.1587]
[1742520942245,9.23348,1989.5,1989.4,42.1587]
[1742520944648,9.23348,1989.5,1989.4,40.8]
[1742520944842,0.80476,1989.3,1989.2,1.3659]
[1742520945046,0.80476,1989.3,1988.8,4.02030356]
[1742520945047,0.80493,1988.9,1988.8,4.02030356]
[1742520945248,4.01273,1988.9,1988.8,41.48626297]
[1742520945454,7.23873,1988.9,1988.8,40.80754356]
[1742520946349,7.23873,1988.9,1988.8,42.09064356]
[1742520946739,7.87763,1988.9,1988.8,42.09064356]
[1742520947147,7.87763,1988.9,1988.8,40.80754356]
[1742520947441,10.37763,1988.9,1988.8,0.00754356]
[1742520949854,7.87763,1988.9,1988.8,0.00754356]
[1742520950045,10.37763,1988.9,1988.8,0.00754356]
[1742520952856,7.87763,1988.9,1988.8,0.00754356]
[1742520955639,10.37763,1988.9,1988.8,0.00754356]
[1742520959249,10.46520816,1988.9,1988.8,0.00754356]
[1742520959555,10.37763,1988.9,1988.8,0.00754356]
[1742520960250,7.87763,1988.9,1988.8,0.00754356]
[1742520962252,4.01273,1988.9,1988.8,0.00754356]
[1742520962453,7.23973,1988.9,1988.8,1.41984356]
[1742520965353,3.2078,1988.9,1988.8,2.22481356]
[1742520965552,0.80493,1988.9,1988.8,2.22481356]
[1742520965857,4.03193,1988.9,1988.8,1.41984356]
[1742520969553,7.23973,1988.9,1988.8,1.41984356]
[1742520970657,6.4348,1988.9,1988.8,2.22481356]
[1742520970857,48.48995,1989.3,1989.0,0.80489]
[1742520970858,4.01268,1989.1,1989.0,0.80489]
[1742520971059,7.23968,1989.1,1989.0,0.80489]
[1742520971555,3.227,1989.1,1989.0,2.21289]
[1742520972154,2.01172,1989.5,1989.0,1.408]
[1742520972359,0.80478,1989.3,1989.2,0.80478]
[1742520972859,0.80481,1989.2,1989.1,5.42062]
[1742520973058,0.80481,1989.2,1989.1,4.01262]
[1742520973260,0.80481,1989.2,1989.1,3.2078]
[1742520973454,0.80485,1989.1,1989.0,0.80485]
[1742520973657,4.03184,1989.2,1989.1,0.80485]
[1742520974458,3.227,1989.2,1989.1,1.484098]
[1742520974652,4.03181,1989.2,1989.1,1.484098]
[1742520975161,4.03181,1989.2,1989.1,0.80485]
[1742520975665,4.03181,1989.2,1989.1,1.48359034]
[1742520976162,4.03181,1989.2,1989.1,0.80485]
[1742520976767,3.227,1989.2,1989.1,4.69110907]
[1742520977369,4.03075,1989.4,1989.3,0.80476]
[1742520977865,3.226,1989.4,1989.3,0.80476]
[1742520978065,4.03072,1989.4,1989.3,0.80476]
[1742520979971,3.226,1989.4,1989.3,0.80476]
[1742520980265,3.226,1989.4,1989.3,2.20456]
[1742520980467,0.80472,1989.5,1989.4,0.80472]
[1742520980669,50.51895,1989.8,1989.5,0.80467]
[1742520980670,4.03067,1989.6,1989.5,0.80467]
[1742520980867,3.226,1989.6,1989.5,0.80467]
[1742520981067,3.8555,1989.9,1989.7,0.80458]
[1742520981068,4.01236,1989.9,1989.7,0.80458]
[1742520981268,0.80456,1989.9,1989.8,42.1998]
[1742520981469,4.03056,1989.9,1989.8,42.1998]
[1742520982170,4.01222,1990.2,1990.0,0.80446]
[1742520982367,3.2078,1990.2,1990.1,0.80444]
[1742520982571,6.4338,1990.2,1990.1,0.80444]
[1742520983368,47.1516,1990.3,1990.2,0.8044]
[1742520983667,49.713,1990.3,1990.2,0.8044]
[1742520983968,1.4799,1990.5,1990.3,0.80436]
[1742520984169,1.47991,1990.5,1990.3,0.80435]
[1742520984371,3.226,1990.4,1990.2,0.80436]
[1742520984571,0.80432,1990.4,1990.3,1.2963]
[1742520984877,4.03032,1990.4,1990.3,1.2963]
[1742520985172,3.226,1990.4,1990.3,2.10066]
[1742520985369,3.226,1990.4,1990.3,1.2963]
[1742520985370,4.03032,1990.4,1990.3,1.2963]
[1742520985864,4.03032,1990.4,1990.3,2.5832]
[1742520986474,4.03032,1990.4,1990.3,1.9264]
[1742520987869,3.226,1990.4,1990.3,1.9264]
[1742520988075,4.03032,1990.4,1990.3,1.9264]
[1742520988574,4.03032,1990.4,1990.3,2.6013]
[1742520989478,4.03032,1990.4,1990.3,1.2869]